bitfinex/quotes_BTCUSD_20220405
["timestamp","ask_amount","ask_price","bid_price","bid_amount"]
[1649199140736,0.332376,45909.0,45908.0,0.00050188]
[1649199140933,0.365086,45909.0,45908.0,0.00050188]
[1649199141036,0.365086,45909.0,45901.0,0.00200782]
[1649199141136,0.375959,45907.0,45896.0,0.001]
[1649199141236,0.375959,45907.0,45906.0,0.00048507]
[1649199141588,0.430429,45907.0,45906.0,0.00048507]
[1649199141736,0.375956,45907.0,45906.0,0.00048507]
[1649199142238,0.375956,45907.0,45896.0,0.001]
[1649199142338,0.66977291,45907.0,45896.0,0.001]
[1649199142437,0.66977291,45907.0,45904.0,0.00048508]
[1649199142538,0.375956,45907.0,45904.0,0.00048508]
[1649199142639,0.430429,45907.0,45904.0,0.00048508]
[1649199143437,0.430429,45907.0,45896.0,0.001]
[1649199143538,0.321486,45905.0,45896.0,0.001]
[1649199143637,0.332376,45905.0,45903.0,0.00048744]
[1649199143838,0.382376,45905.0,45903.0,0.00048744]
[1649199143938,0.382376,45905.0,45894.0,0.23848903]
[1649199144063,0.371486,45905.0,45894.0,0.23848903]
[1649199145357,0.321486,45903.0,45894.0,0.23848903]
[1649199145464,0.321486,45903.0,45894.0,0.00715151]
[1649199145559,0.321486,45903.0,45893.0,0.001]
[1649199145658,0.371486,45903.0,45893.0,0.001]
[1649199145760,0.321486,45901.0,45893.0,0.001]
[1649199145858,0.316486,45901.0,45893.0,0.001]
[1649199145956,0.321486,45891.0,45889.0,0.001]
[1649199146157,0.321486,45891.0,45890.0,0.008716]
[1649199146961,0.375972,45891.0,45890.0,0.008716]
[1649199147713,0.321486,45891.0,45890.0,0.008716]
[1649199147859,0.002,45892.0,45890.0,0.17106115]
[1649199148059,0.002,45892.0,45891.0,0.354446]
[1649199149164,0.002,45892.0,45891.0,0.3]
[1649199149467,0.002,45892.0,45890.0,0.17106115]
[1649199149764,0.002,45892.0,45890.0,0.008716]
[1649199150265,0.32154,45891.0,45890.0,0.008716]
[1649199153107,0.32336312,45891.0,45890.0,0.008716]
[1649199153660,0.32336312,45891.0,45879.0,0.2955133]
[1649199153762,0.29572574,45890.0,45861.0,0.108973]
[1649199153862,0.32154,45889.0,45874.0,0.45715757]
[1649199154158,0.32154,45889.0,45881.0,0.008717]
[1649199154863,0.15538943,45888.0,45881.0,0.008717]
[1649199154958,0.32154,45887.0,45881.0,0.008717]
[1649199156010,0.0109,45890.0,45881.0,0.008717]
[1649199156111,0.00182312,45891.0,45881.0,0.008717]
[1649199156914,0.00182312,45891.0,45882.0,0.21287486]
[1649199157013,0.00182312,45891.0,45890.0,0.28819965]
[1649199157112,0.32336312,45891.0,45890.0,0.28819965]
[1649199157316,0.32154,45891.0,45890.0,0.28819965]
[1649199157414,0.32154,45891.0,45883.0,0.3]
[1649199157518,0.002,45892.0,45883.0,0.3]
[1649199157615,0.32154,45891.0,45880.0,0.1994]
[1649199157715,0.002,45892.0,45880.0,0.1994]
[1649199157815,0.32154,45891.0,45880.0,0.2494]
[1649199157915,0.32154,45890.0,45880.0,0.2494]
[1649199158067,0.32154,45891.0,45880.0,0.2494]
[1649199158164,0.32154,45891.0,45880.0,0.2385]
[1649199158267,0.32154,45891.0,45880.0,0.2494]
[1649199158367,0.0005035,45889.0,45880.0,0.2494]
[1649199158468,0.32154,45888.0,45880.0,0.2494]
[1649199158616,0.32154,45888.0,45880.0,0.1885]
[1649199158766,0.45532525,45887.0,45879.0,0.00050361]
[1649199158866,1.88758191,45884.0,45879.0,0.00050361]
[1649199158966,0.62154,45883.0,45879.0,0.00050361]
[1649199159101,0.3,45882.0,45879.0,0.00050361]
[1649199159202,0.3,45882.0,45875.0,0.00450667]
[1649199159402,0.3,45882.0,45879.0,0.00050275]
[1649199159506,0.62154,45882.0,45879.0,0.00050275]
[1649199159811,0.77686525,45882.0,45879.0,0.00050275]
[1649199160006,0.82046525,45882.0,45879.0,0.00050275]
[1649199160107,0.83136525,45882.0,45879.0,0.00050275]
[1649199160406,0.83136525,45882.0,45875.0,0.00450667]
[1649199161108,0.83136525,45882.0,45871.0,0.01]
[1649199161307,1.04207095,45882.0,45871.0,0.01]
[1649199161563,1.99040845,45882.0,45871.0,0.01]
[1649199161660,0.16355481,45879.0,45871.0,0.01]
[1649199161810,0.88136525,45878.0,45871.0,0.01]
[1649199162112,0.98136525,45878.0,45871.0,0.01]
[1649199162417,0.22234741,45875.0,45871.0,0.01]
[1649199162512,2.28906461,45874.0,45871.0,0.01]
[1649199162712,0.32154,45872.0,45871.0,0.01]
[1649199162819,0.62154,45872.0,45871.0,0.01]
[1649199162920,0.66514,45872.0,45871.0,0.01]
[1649199163221,0.36514,45872.0,45871.0,0.01]
[1649199164322,0.32154,45872.0,45871.0,0.01]
[1649199165228,0.32336134,45872.0,45871.0,0.01]
[1649199166574,0.62344875,45872.0,45871.0,0.01]
[1649199167018,0.36704875,45872.0,45871.0,0.01]
[1649199167318,0.41704875,45872.0,45871.0,0.01]
[1649199167519,0.76103625,45872.0,45871.0,0.01]
[1649199167623,0.87865873,45872.0,45871.0,0.01]
[1649199168622,0.77207103,45872.0,45871.0,0.01]
[1649199169571,0.92724632,45872.0,45871.0,0.00183935]
[1649199169873,1.02724632,45872.0,45871.0,0.00183935]
[1649199169974,1.07724632,45872.0,45871.0,0.00183935]
[1649199170073,2.50877382,45872.0,45871.0,3.935e-05]
[1649199170178,0.71893415,45870.0,45865.0,0.001]
[1649199170353,0.71893415,45870.0,45862.0,0.00211214]
[1649199170354,1.33594,45865.0,45862.0,0.00211214]
[1649199170437,1.0780275,45864.0,45862.0,0.00211214]
[1649199170537,1.54384279,45863.0,45862.0,0.00211214]
[1649199170639,2.21914279,45863.0,45862.0,0.00211214]
[1649199170741,0.35,45862.0,45842.0,0.001]
[1649199170837,1.0995675,45861.0,45842.0,0.001]
[1649199170938,0.11762248,45857.0,45842.0,0.001]
[1649199171038,1.51284052,45857.0,45842.0,0.001]
[1649199171140,0.25,45856.0,45842.0,0.001]
[1649199171238,1.0995675,45855.0,45842.0,0.001]
[1649199171343,0.33258056,45853.0,45842.0,0.001]
[1649199171438,1.41060686,45853.0,45842.0,0.001]
[1649199171539,1.45420686,45853.0,45842.0,0.001]
[1649199171740,0.68707936,45853.0,45842.0,0.001]
[1649199171838,0.74401801,45853.0,45842.0,0.001]
[1649199172040,0.44401801,45853.0,45842.0,0.001]
[1649199172142,0.74401801,45853.0,45842.0,0.001]
[1649199172341,1.51114551,45853.0,45842.0,0.001]
[1649199172597,0.35,45852.0,45842.0,0.001]
[1649199172693,0.7671275,45847.0,45842.0,0.001]
[1649199172794,0.63245,45846.0,45842.0,0.001]
[1649199172890,0.7671275,45845.0,45842.0,0.001]
[1649199172991,0.32154,45844.0,45842.0,0.001]
[1649199173092,0.7671275,45843.0,45842.0,0.001]
[1649199173190,1.42177362,45843.0,45842.0,0.001]
[1649199173294,1.16537362,45843.0,45842.0,0.001]
[1649199173391,0.39824612,45843.0,45842.0,0.001]
[1649199175624,0.39983742,45843.0,45842.0,0.001]
[1649199175926,0.39983742,45843.0,45841.0,0.008]
[1649199176429,0.07829742,45843.0,45841.0,0.008]
[1649199176680,0.32154,45842.0,45841.0,0.008]
[1649199176780,0.03469742,45843.0,45841.0,0.008]
[1649199176882,0.32154,45842.0,45841.0,0.008]
[1649199177130,0.03469742,45843.0,45841.0,0.008]
[1649199178717,6.462e-05,45842.0,45841.0,0.008]
[1649199178918,0.32160462,45842.0,45841.0,0.008]
[1649199179019,6.462e-05,45842.0,45841.0,0.008]
[1649199179318,0.32160462,45842.0,45841.0,0.008]
[1649199179419,0.00165583,45842.0,45841.0,0.008]
[1649199180572,0.00165583,45842.0,45841.0,0.22524271]
[1649199180672,0.00165583,45842.0,45841.0,0.48972171]
[1649199180823,0.3,45863.0,45841.0,0.31891]
[1649199180928,0.00053545,45864.0,45841.0,0.31891]
[1649199180929,0.00053545,45864.0,45844.0,0.2]
[1649199181022,0.5,45865.0,45844.0,0.2]
[1649199181123,0.3,45864.0,45845.0,0.01091]
[1649199181224,0.0109,45867.0,45845.0,0.01091]
[1649199181588,0.00053545,45864.0,45845.0,0.01091]
[1649199181877,0.00053545,45864.0,45846.0,0.21629662]
[1649199181982,0.00053545,45864.0,45849.0,0.32501735]
[1649199182078,0.00053545,45864.0,45850.0,0.01091]
[1649199182279,0.0109,45867.0,45850.0,0.01091]
[1649199182476,0.0109,45867.0,45854.0,0.00049224]
[1649199182678,0.00049213,45864.0,45854.0,0.00049224]
[1649199183231,0.32154,45863.0,45854.0,0.00049224]
[1649199183332,0.3,45862.0,45854.0,0.00049224]
[1649199183435,0.32154,45861.0,45848.0,0.01091]
[1649199183531,0.32154,45860.0,45847.0,0.01091]
[1649199183630,0.32154,45860.0,45842.0,0.05]
[1649199183631,0.3,45859.0,45857.0,0.00049223]
[1649199183730,0.32154,45858.0,45857.0,0.00049223]
[1649199184179,0.376069,45858.0,45857.0,0.00049223]
[1649199184281,0.676069,45858.0,45857.0,0.00049223]
[1649199184681,0.62154,45858.0,45846.0,0.01091]
[1649199184782,0.3,45858.0,45846.0,0.01091]
[1649199184883,0.32154,45861.0,45855.0,0.00049224]
[1649199185091,0.32154,45859.0,45855.0,0.00049224]
[1649199185311,0.37154,45859.0,45855.0,0.00049224]
[1649199185606,0.32154,45857.0,45855.0,0.00049224]
[1649199185806,0.32154,45857.0,45845.0,0.39946561]
[1649199185907,0.301889,45858.0,45850.0,0.29141743]
[1649199186011,0.001889,45858.0,45854.0,0.00048219]
[1649199186106,0.32154,45857.0,45854.0,0.00048219]
[1649199187008,0.32154,45857.0,45850.0,0.29141743]
[1649199187109,0.001889,45858.0,45850.0,0.29141743]
[1649199187209,0.001889,45858.0,45853.0,0.00048219]
[1649199187312,0.32154,45857.0,45853.0,0.00048219]
[1649199187511,0.32154,45857.0,45850.0,0.25908793]
[1649199187612,0.001889,45858.0,45850.0,0.25908793]
[1649199188018,0.0018889,45863.0,45850.0,0.25908793]
[1649199188417,0.0018889,45863.0,45859.0,0.40213154]
[1649199188965,0.0018889,45863.0,45861.0,0.27571433]
[1649199189727,0.0018889,45863.0,45862.0,0.253426]
[1649199189825,0.0018889,45863.0,45861.0,0.27571433]
[1649199190074,0.0004696,45864.0,45861.0,0.27571433]
[1649199190674,0.00200694,45868.0,45861.0,0.27571433]
[1649199190977,0.0004696,45865.0,45861.0,0.27571433]
[1649199191525,0.0004696,45865.0,45862.0,0.253426]
[1649199191979,0.00200694,45868.0,45861.0,0.27571433]
[1649199192076,0.00283416,45862.0,45861.0,0.27571433]
[1649199192226,0.00283416,45862.0,45861.0,0.52914533]
[1649199192868,0.00283416,45862.0,45861.0,0.52914733]
[1649199192967,0.00283416,45862.0,45861.0,0.27571433]
[1649199193219,0.00283416,45862.0,45861.0,0.52914733]
[1649199193319,0.00283416,45862.0,45861.0,0.27571433]
[1649199193870,0.00283416,45862.0,45861.0,0.52914733]
[1649199193969,0.00283416,45862.0,45861.0,0.27571433]
[1649199194071,0.00283416,45862.0,45861.0,0.52914733]
[1649199194169,0.00047031,45864.0,45861.0,0.52914733]
[1649199194268,0.00047031,45864.0,45861.0,0.27571433]
[1649199194369,0.00283498,45867.0,45861.0,0.27571433]
[1649199194569,0.00047031,45864.0,45861.0,0.27571433]
[1649199195371,0.00047031,45864.0,45860.0,0.05]
[1649199195372,0.00047031,45864.0,45860.0,0.05872]
[1649199195470,0.00283498,45867.0,45860.0,0.05872]
[1649199195576,0.00283498,45867.0,45860.0,0.00872]
[1649199195671,0.00283498,45867.0,45855.0,0.0109]
[1649199195772,0.0004703,45865.0,45855.0,0.0109]
[1649199196271,0.00283416,45862.0,45855.0,0.0109]
[1649199196371,0.00283416,45862.0,45859.0,0.23003834]
[1649199198408,0.00047023,45863.0,45859.0,0.23003834]
[1649199199110,0.00283449,45864.0,45859.0,0.23003834]
[1649199199461,0.00047022,45863.0,45859.0,0.23003834]
[1649199200165,0.002834,45861.0,45859.0,0.23003834]
[1649199201512,0.002834,45861.0,45855.0,0.0109]
[1649199202416,0.002834,45861.0,45854.0,0.0109]
[1649199202618,0.002834,45861.0,45854.0,0.019621]
[1649199202719,0.002834,45861.0,45858.0,0.21925172]
[1649199203016,0.00047025,45860.0,45858.0,0.21925172]
[1649199203968,0.002834,45861.0,45858.0,0.21925172]
[1649199204206,0.00330425,45861.0,45858.0,0.21925172]
[1649199204306,0.00047025,45861.0,45858.0,0.21925172]
[1649199205159,0.00283383,45865.0,45858.0,0.21925172]
[1649199205359,0.00047024,45862.0,45858.0,0.21925172]
[1649199205810,0.00226707,45860.0,45858.0,0.21925172]
[1649199207866,0.00226707,45860.0,45859.0,0.253446]
[1649199208011,0.00226707,45860.0,45858.0,0.21925172]
[1649199208613,0.00220655,45860.0,45858.0,0.21925172]
[1649199209916,0.00283367,45860.0,45858.0,0.21925172]
[1649199213971,0.00047025,45861.0,45858.0,0.21925172]
[1649199214764,0.00237892,45868.0,45858.0,0.21925172]
[1649199214970,0.00047024,45862.0,45858.0,0.21925172]
[1649199215610,0.00226102,45860.0,45858.0,0.21925172]
[1649199216961,0.00226102,45860.0,45859.0,0.253447]
[1649199217110,0.00226102,45860.0,45858.0,0.21925172]
[1649199217411,0.00226102,45860.0,45859.0,0.253446]
[1649199217512,0.00226102,45860.0,45858.0,0.21925172]
[1649199217612,0.00226102,45860.0,45859.0,0.253446]
[1649199218614,1.02e-06,45860.0,45859.0,0.253446]
[1649199218913,1.02e-06,45860.0,45859.0,0.297046]
[1649199219268,1.26e-06,45862.0,45859.0,0.297046]
[1649199219368,1.26e-06,45862.0,45859.0,0.307946]
[1649199219565,0.00011804,45868.0,45859.0,0.307946]
[1649199219667,0.00011804,45868.0,45862.0,0.2132386]
[1649199219820,0.00011804,45868.0,45859.0,0.0545]
[1649199219821,0.00011804,45868.0,45867.0,0.26806484]
[1649199219968,0.00011804,45868.0,45863.0,0.0436]
[1649199220070,0.00011804,45868.0,45857.0,0.9305]
[1649199220169,0.00011804,45868.0,45860.0,0.0436]
[1649199220374,0.00011804,45868.0,45857.0,1.0305]
[1649199220469,0.00011804,45868.0,45857.0,0.9305]
[1649199220969,0.054514,45867.0,45857.0,0.9196]
[1649199221069,0.054514,45867.0,45857.0,0.05]
[1649199221070,0.3,45866.0,45857.0,0.05]
[1649199221169,0.3,45866.0,45856.0,0.05]
[1649199221275,0.3,45866.0,45856.0,0.008721]
[1649199221372,0.33244,45865.0,45856.0,0.008721]
[1649199221483,0.33244,45865.0,45854.0,0.0444]
[1649199221774,0.33244,45865.0,45848.0,0.7328]
[1649199221875,0.38244,45865.0,45848.0,0.7328]
[1649199221970,0.05452527,45861.0,45848.0,0.7328]
[1649199222070,0.63244,45860.0,45848.0,0.7328]
[1649199222274,0.63244,45860.0,45855.0,0.00053765]
[1649199222475,0.00107529,45854.0,45850.0,0.27272984]
[1649199224864,0.00107529,45854.0,45850.0,0.32722984]
[1649199225415,0.00107529,45854.0,45850.0,0.52352182]
[1649199227059,0.00107529,45854.0,45850.0,0.27326753]
[1649199228062,0.00107529,45854.0,45850.0,0.27272984]
[1649199229219,0.00107529,45854.0,45850.0,0.26772984]
[1649199229321,0.00107529,45854.0,45848.0,1.04470294]
[1649199229418,0.00107529,45854.0,45848.0,0.7328]
[1649199230627,0.00107529,45854.0,45846.0,0.3119119]
[1649199230628,0.35464439,45853.0,45846.0,0.3119119]
[1649199230728,0.32154,45851.0,45846.0,0.3119119]
[1649199230831,0.354531,45852.0,45844.0,0.3119119]
[1649199230930,0.354531,45852.0,45843.0,0.3119119]
[1649199231428,0.32154,45851.0,45843.0,0.3119119]
[1649199231580,0.05453466,45849.0,45842.0,0.3119119]
[1649199231681,0.054536,45847.0,45841.0,0.008]
[1649199231876,0.054536,45847.0,45845.0,0.00053726]
[1649199232076,0.32154,45846.0,45845.0,0.00053726]
[1649199232177,0.62154,45846.0,45845.0,0.00053726]
[1649199232979,0.62154,45846.0,45841.0,0.008]
[1649199233180,0.62154,45846.0,45843.0,0.00053727]
[1649199234065,0.83972347,45846.0,45843.0,0.00053727]
[1649199234266,0.73063147,45846.0,45841.0,0.008]
[1649199234369,0.32154,45844.0,45841.0,0.008]
[1649199234768,0.01091,45843.0,45841.0,0.008]
[1649199234867,0.32154,45842.0,45841.0,0.008]
[1649199235672,0.01091,45844.0,45841.0,0.008]
[1649199235770,0.01091,45848.0,45841.0,0.008]
[1649199235871,0.01091,45848.0,45841.0,0.18621018]
[1649199235968,0.01091,45850.0,45841.0,0.008]
[1649199236170,0.32154,45849.0,45841.0,0.008]
[1649199236322,0.01091,45848.0,45841.0,0.18621018]
[1649199236422,0.01091,45848.0,45842.0,0.17821018]
[1649199236519,0.01091,45850.0,45842.0,0.17821018]
[1649199236820,0.32154,45849.0,45843.0,0.00049842]
[1649199236980,0.01091,45848.0,45843.0,0.00049842]
[1649199237377,0.01091,45850.0,45843.0,0.00049842]
[1649199237476,0.32154,45849.0,45843.0,0.00049842]
[1649199237573,0.32154,45847.0,45843.0,0.00049842]
[1649199237834,0.32154,45847.0,45841.0,0.18621018]
[1649199237931,0.32154,45847.0,45841.0,0.008]
[1649199238030,0.32154,45847.0,45843.0,0.00049842]
[1649199238430,0.01091,45846.0,45843.0,0.00049842]
[1649199238530,0.32140992,45845.0,45843.0,0.00049842]
[1649199238632,0.3,45844.0,45843.0,0.00049842]
[1649199238732,0.63245,45844.0,45843.0,0.00049842]
[1649199238833,0.68245,45844.0,45843.0,0.00049842]
[1649199239033,0.68245,45844.0,45841.0,0.008]
[1649199239133,0.321602,45843.0,45841.0,0.008]
[1649199239283,0.621602,45842.0,45841.0,0.00850183]
[1649199239785,0.676147,45842.0,45841.0,0.00850183]
[1649199239984,0.68718889,45842.0,45841.0,0.00850183]
[1649199240336,0.68718889,45842.0,45841.0,0.008]
[1649199240988,0.69809889,45842.0,45841.0,0.008]
[1649199241439,0.69118179,45842.0,45841.0,0.008]
[1649199241677,0.63663679,45842.0,45841.0,0.008]
[1649199243077,0.68663679,45842.0,45841.0,0.008]
[1649199244180,0.38663679,45842.0,45841.0,0.008]
[1649199244581,0.38663661,45842.0,45841.0,0.008]
[1649199244784,0.05,45842.0,45841.0,0.008]
[1649199244981,0.01091,45845.0,45841.0,0.008]
[1649199245131,0.05,45846.0,45841.0,0.008]
[1649199245231,0.01091,45845.0,45841.0,0.008]
[1649199245366,0.4,45851.0,45841.0,0.008]
[1649199245367,0.321602,45849.0,45841.0,0.008]
[1649199245467,0.01091,45848.0,45841.0,0.008]
[1649199245566,0.05,45849.0,45841.0,0.008]
[1649199245666,0.01091,45848.0,45841.0,0.008]
[1649199245766,0.321602,45850.0,45841.0,0.008]
[1649199245867,0.0109,45852.0,45841.0,0.008]
[1649199246372,0.04400439,45853.0,45841.0,0.008]
[1649199246470,0.04400439,45853.0,45844.0,0.00048621]
[1649199246570,0.321602,45852.0,45844.0,0.00048621]
[1649199246972,0.321602,45850.0,45844.0,0.00048621]
[1649199247522,0.321602,45850.0,45841.0,0.008]
[1649199247625,0.3,45851.0,45841.0,0.008]
[1649199247772,0.321602,45850.0,45845.0,0.000268]
[1649199248375,0.054533,45849.0,45845.0,0.000268]
[1649199248473,0.621602,45848.0,45845.0,0.000268]
[1649199248786,0.621602,45848.0,45841.0,0.008]
[1649199248787,0.0436,45847.0,45841.0,0.008]
[1649199248928,0.321602,45846.0,45844.0,0.0002665]
[1649199249070,0.621602,45845.0,45844.0,0.0002665]
[1649199249169,0.632512,45845.0,45844.0,0.0002665]
[1649199249268,0.64355425,45845.0,45844.0,0.0002665]
[1649199249471,0.68715425,45845.0,45844.0,0.0002665]
[1649199249775,0.79624925,45845.0,45844.0,0.0002665]
[1649199249972,0.321602,45844.0,45841.0,0.008]
[1649199250071,0.33264425,45842.0,45841.0,0.008]
[1649199250173,0.63264425,45842.0,45841.0,0.008]
[1649199250374,0.69355425,45842.0,45841.0,0.008]
[1649199251075,0.74355425,45842.0,45841.0,0.008]
[1649199251273,0.44355425,45842.0,45841.0,0.008]
[1649199251471,0.49809925,45842.0,45841.0,0.008]
[1649199251570,0.44355425,45842.0,45841.0,0.008]
[1649199251673,0.432512,45842.0,45841.0,0.008]
[1649199252425,0.0075234,45838.0,45836.0,0.26073849]
[1649199253550,0.0075234,45838.0,45833.0,0.00140056]
[1649199253802,0.0075234,45838.0,45835.0,0.00050917]
[1649199254202,0.321602,45837.0,45835.0,0.00050917]
[1649199254302,0.0075234,45838.0,45835.0,0.00050917]
[1649199254805,0.0075234,45838.0,45833.0,0.00140056]
[1649199255005,0.0075234,45838.0,45834.0,0.00050918]
[1649199255956,0.0075234,45838.0,45833.0,0.00140056]
[1649199256156,0.0075234,45838.0,45834.0,0.00049684]
[1649199256973,0.321602,45837.0,45834.0,0.00049684]
[1649199257072,0.05,45837.0,45834.0,0.00049684]
[1649199257171,0.0075234,45838.0,45833.0,0.00140056]
[1649199257274,0.321602,45837.0,45833.0,0.00140056]
[1649199257374,0.321602,45837.0,45834.0,0.00049684]
[1649199257874,0.2,45835.0,45834.0,0.00049684]
[1649199257976,0.532512,45835.0,45834.0,0.00049684]
[1649199258075,0.532512,45835.0,45833.0,0.00140056]
[1649199258076,0.582512,45835.0,45833.0,0.00140056]
[1649199258180,0.52068895,45834.0,45833.0,0.00140056]
[1649199258375,0.74644138,45834.0,45833.0,0.00140056]
[1649199259125,0.35,45833.0,45832.0,0.001]
[1649199259228,0.321602,45833.0,45832.0,0.00180112]
[1649199259325,0.526112,45833.0,45832.0,0.00180112]
[1649199261520,0.376112,45833.0,45832.0,0.00180112]
[1649199261625,0.321602,45833.0,45832.0,0.00180112]
[1649199263073,0.371602,45833.0,45832.0,0.00180112]
[1649199264271,0.321602,45833.0,45832.0,0.00180112]
[1649199264374,0.0075234,45838.0,45832.0,0.00180112]
[1649199264971,0.0075234,45838.0,45832.0,0.00210131]
[1649199265379,0.0075234,45838.0,45832.0,0.42784509]
[1649199265973,0.0075234,45838.0,45832.0,0.4275449]
[1649199266075,0.0075234,45838.0,45833.0,0.3]
[1649199266178,0.0075234,45838.0,45834.0,0.25374]
[1649199266832,0.0075234,45838.0,45835.0,0.25373]
[1649199267230,0.0075234,45838.0,45835.0,0.308244]
[1649199267532,0.0075234,45838.0,45836.0,0.3]
[1649199267634,0.0075234,45838.0,45837.0,0.253718]
[1649199267932,0.0075234,45838.0,45837.0,0.553718]
[1649199268938,0.0075234,45838.0,45837.0,0.564628]
[1649199269035,3.4e-06,45838.0,45837.0,0.74266643]
[1649199269149,3.4e-06,45838.0,45837.0,0.84077743]
[1649199270439,3.4e-06,45838.0,45837.0,0.762739]
[1649199270538,0.8856334,45840.0,45837.0,0.98528704]
[1649199270638,0.8856334,45840.0,45839.0,0.17806318]
[1649199270743,0.8856334,45840.0,45839.0,0.564614]
[1649199270842,0.00107529,45854.0,45840.0,0.35]
[1649199270939,0.00107529,45854.0,45841.0,0.319099]
[1649199271044,0.00051042,45848.0,45843.0,0.054505]
[1649199271138,0.00051042,45848.0,45844.0,0.01091]
[1649199271439,0.00051042,45848.0,45847.0,0.23557579]
[1649199271573,0.00051042,45848.0,45847.0,0.42832548]
[1649199272027,0.00107529,45854.0,45852.0,0.24551709]
[1649199272225,0.00051044,45850.0,45846.0,0.7881]
[1649199272327,0.00051044,45850.0,45846.0,0.796822]
[1649199272430,0.00051044,45850.0,45846.0,0.008722]
[1649199272675,0.00051044,45850.0,45842.0,0.17805465]
[1649199272676,0.00051044,45850.0,45843.0,0.01091]
[1649199272778,0.00051044,45850.0,45842.0,0.01091]
[1649199272881,0.00051044,45850.0,45841.0,0.01091]
[1649199273281,0.05560193,45854.0,45843.0,0.26139593]
[1649199273379,0.05560193,45854.0,45844.0,0.01091]
[1649199273482,0.00051045,45848.0,45844.0,0.01091]
[1649199273983,0.00029565,45848.0,45844.0,0.18896465]
[1649199274430,0.00107529,45854.0,45844.0,0.18896465]
[1649199274532,0.00107529,45854.0,45853.0,0.20742365]
[1649199274782,0.00107529,45854.0,45845.0,0.3]
[1649199274882,0.00107529,45854.0,45844.0,0.01091]
[1649199275939,0.00023088,45851.0,45844.0,0.01091]
[1649199276039,0.00023088,45851.0,45844.0,0.24616262]
[1649199276740,0.00023088,45851.0,45844.0,0.01091]
[1649199276842,0.00107529,45854.0,45844.0,0.01091]
[1649199277041,0.00023088,45850.0,45844.0,0.01091]
[1649199277242,0.00023088,45850.0,45842.0,0.01091]
[1649199277643,0.00023088,45850.0,45841.0,0.01091]
[1649199277743,0.00023088,45850.0,45841.0,0.2369179]
[1649199277948,0.00107529,45854.0,45841.0,0.2369179]
[1649199278248,0.00053141,45850.0,45841.0,0.2369179]
[1649199279179,9.0,45851.0,45841.0,0.2369179]
[1649199279478,0.00053141,45850.0,45841.0,0.2369179]
[1649199280381,9.0,45851.0,45841.0,0.2369179]
[1649199280680,0.00053141,45850.0,45841.0,0.2369179]
[1649199281081,0.00053141,45850.0,45841.0,0.2869179]
[1649199281584,9.0,45851.0,45841.0,0.2869179]
[1649199281986,9.0,45851.0,45841.0,0.2760079]
[1649199282086,9.0,45851.0,45848.0,0.2805959]
[1649199282532,0.19516377,45847.0,45840.0,0.32842]
[1649199282682,0.19516377,45847.0,45841.0,0.253681]
[1649199283527,0.19516377,45847.0,45842.0,0.25841449]
[1649199283628,0.19516377,45847.0,45843.0,0.253675]
[1649199286975,0.19516377,45847.0,45842.0,0.25841449]
[1649199289328,0.19516377,45847.0,45838.0,0.01091]
[1649199289780,0.19516377,45847.0,45839.0,0.2537]
[1649199289879,0.19516377,45847.0,45840.0,0.01091]
[1649199289979,0.19516377,45847.0,45838.0,0.01091]
[1649199290078,0.19516377,45847.0,45839.0,0.2537]
[1649199290178,0.19516377,45847.0,45840.0,0.01091]
[1649199290366,0.19516377,45847.0,45842.0,0.25365878]
[1649199290964,0.19516377,45847.0,45843.0,0.253675]
[1649199292214,0.19516377,45847.0,45842.0,0.25365878]
[1649199299952,0.19516377,45847.0,45839.0,0.253698]
[1649199300054,0.19516377,45847.0,45841.0,0.008724]
[1649199300353,0.19516377,45847.0,45837.0,0.00053243]
[1649199300858,0.19516377,45847.0,45834.0,0.01091]
[1649199301055,0.19516377,45847.0,45837.0,0.00053242]
[1649199301160,0.36562029,45846.0,45837.0,0.00053242]
[1649199301355,0.163634,45845.0,45837.0,0.00053242]
[1649199301459,0.321602,45844.0,45837.0,0.00053242]
[1649199301685,0.05454429,45842.0,45837.0,0.00053242]
[1649199301786,0.382512,45841.0,45837.0,0.00053242]
[1649199302034,0.371602,45841.0,45833.0,0.00080112]
[1649199302136,0.054547,45839.0,45833.0,0.00080112]
[1649199302238,0.01091,45838.0,45837.0,0.00051094]
[1649199302337,0.332512,45838.0,45837.0,0.00051094]
[1649199302536,0.382512,45838.0,45837.0,0.00051094]
[1649199303237,0.382512,45838.0,45833.0,0.00080112]
[1649199303491,0.382512,45838.0,45835.0,0.00051095]
[1649199304438,0.382512,45838.0,45833.0,0.00080112]
[1649199304539,0.06091,45838.0,45833.0,0.00080112]
[1649199304689,0.01091,45838.0,45834.0,0.00051096]
[1649199304792,0.38455962,45847.0,45834.0,0.00051096]
[1649199304793,0.01091,45841.0,45834.0,0.00051096]
[1649199304889,0.01091,45844.0,45834.0,0.00051096]
[1649199304992,0.321602,45843.0,45834.0,0.00051096]
[1649199305089,0.01091,45842.0,45834.0,0.00051096]
[1649199305189,0.321602,45841.0,45834.0,0.00051096]
[1649199305332,0.01091,45840.0,45834.0,0.00051096]
[1649199305685,0.01091,45840.0,45833.0,0.21214076]
[1649199305937,0.321602,45839.0,45835.0,0.00049444]
[1649199306037,0.01091,45838.0,45835.0,0.00049444]
[1649199306134,0.321602,45839.0,45835.0,0.00049444]
[1649199306339,0.01091,45838.0,45835.0,0.00049444]
[1649199306487,0.321602,45839.0,45835.0,0.00049444]
[1649199306588,0.01091,45838.0,45835.0,0.00049444]
[1649199306685,0.321602,45837.0,45835.0,0.00049444]
[1649199307240,0.32151975,45837.0,45833.0,0.00080112]
[1649199308488,0.32151975,45837.0,45833.0,0.00127773]
[1649199308692,0.37606775,45837.0,45833.0,0.00127773]
[1649199309118,0.321602,45835.0,45833.0,0.00127773]
[1649199309320,0.332512,45835.0,45833.0,0.00127773]
[1649199309518,0.382512,45835.0,45833.0,0.00080112]
[1649199309821,0.591632,45835.0,45833.0,0.00080112]
[1649199309918,0.365214,45834.0,45833.0,0.00080112]
[1649199310021,0.376124,45834.0,45833.0,0.00080112]
[1649199310118,0.35,45833.0,45832.0,0.001]
[1649199310228,0.321614,45833.0,45832.0,0.001]